[Event "*** Monthly 3|2 Blitz Masters"]
[Site "Chess.com"]
[Date "2014.11.25"]
[Round "9"]
[White "Yaacovn"]
[Black "GedoGluperd"]
[Result "1-0"]
[WhiteElo "2604"]
[BlackElo "2339"]
[TimeControl "180+2"]
[EndTime "13:00:03 PST"]
[Termination "Yaacovn won on time"]

1. d4 {[%clk 0:02:59.7]} 1... Nf6 {[%clk 0:02:56.1]} 2. Nf3 {[%clk 0:02:59.5]}
2... g6 {[%clk 0:02:57]} 3. c4 {[%clk 0:02:58.2]} 3... Bg7 {[%clk 0:02:58.3]} 4.
Nc3 {[%clk 0:02:59.2]} 4... O-O {[%clk 0:02:59.4]} 5. g3 {[%clk 0:02:57.4]} 5...
d6 {[%clk 0:02:59.9]} 6. Bg2 {[%clk 0:02:57.5]} 6... c6 {[%clk 0:03:01.3]} 7.
O-O {[%clk 0:02:58.5]} 7... Qa5 {[%clk 0:03:02.8]} 8. Bg5 {[%clk 0:02:58.4]}
8... h6 {[%clk 0:03:01.8]} 9. Bxf6 {[%clk 0:02:59.4]} 9... Bxf6 {[%clk
0:03:02.8]} 10. e3 {[%clk 0:03:00.9]} 10... Bg7 {[%clk 0:03:01]} 11. a3 {[%clk
0:02:59.1]} 11... Qh5 {[%clk 0:03:00.9]} 12. Nh4 {[%clk 0:02:58.3]} 12... Bg4
{[%clk 0:02:57.7]} 13. Bf3 {[%clk 0:02:58.2]} 13... Bxf3 {[%clk 0:02:57.1]} 14.
Qxf3 {[%clk 0:02:59.8]} 14... Qa5 {[%clk 0:02:54.8]} 15. b4 {[%clk 0:02:58.5]}
15... Qc7 {[%clk 0:02:45.6]} 16. Rfc1 {[%clk 0:02:36.9]} 16... Nd7 {[%clk
0:02:45.7]} 17. Ng2 {[%clk 0:02:34]} 17... e6 {[%clk 0:02:40.4]} 18. h4 {[%clk
0:02:24.4]} 18... Nb6 {[%clk 0:02:37.7]} 19. c5 {[%clk 0:02:23.3]} 19... Nd7
{[%clk 0:02:20.8]} 20. cxd6 {[%clk 0:02:20.4]} 20... Qxd6 {[%clk 0:02:21.4]} 21.
Ne4 {[%clk 0:02:21.1]} 21... Qd5 {[%clk 0:02:19.2]} 22. Nf4 {[%clk 0:02:22.6]}
22... Qb5 {[%clk 0:02:06.9]} 23. Nd6 {[%clk 0:02:22.1]} 23... Qb6 {[%clk
0:02:05.8]} 24. h5 {[%clk 0:02:22.4]} 24... g5 {[%clk 0:02:04.3]} 25. Nd3 {[%clk
0:02:23.2]} 25... Qc7 {[%clk 0:02:01.3]} 26. Ne4 {[%clk 0:02:21.9]} 26... f5
{[%clk 0:01:55.4]} 27. Nec5 {[%clk 0:02:22.4]} 27... Rae8 {[%clk 0:01:52.8]} 28.
Nxd7 {[%clk 0:02:21.8]} 28... Qxd7 {[%clk 0:01:52.8]} 29. Nc5 {[%clk 0:02:22.8]}
29... Qf7 {[%clk 0:01:52.5]} 30. b5 {[%clk 0:02:18.5]} 30... g4 {[%clk
0:01:52.4]} 31. Qg2 {[%clk 0:02:18]} 31... b6 {[%clk 0:01:48.2]} 32. Na6 {[%clk
0:02:07.6]} 32... cxb5 {[%clk 0:01:48.7]} 33. Nc7 {[%clk 0:02:08.5]} 33... Rc8
{[%clk 0:01:44.5]} 34. Nxb5 {[%clk 0:02:09.8]} 34... Qxh5 {[%clk 0:01:41.1]} 35.
Nxa7 {[%clk 0:02:07.9]} 35... Rxc1+ {[%clk 0:01:41.3]} 36. Rxc1 {[%clk
0:02:09.8]} 36... Qf7 {[%clk 0:01:39.5]} 37. Nc6 {[%clk 0:02:08.7]} 37... Qc7
{[%clk 0:01:22.4]} 38. Qf1 {[%clk 0:02:04.3]} 38... Qd6 {[%clk 0:01:17.1]} 39.
a4 {[%clk 0:02:01.9]} 39... h5 {[%clk 0:01:17.9]} 40. Qb5 {[%clk 0:01:53.6]}
40... h4 {[%clk 0:01:17.3]} 41. gxh4 {[%clk 0:01:51.7]} 41... Rf6 {[%clk
0:01:14.6]} 42. Qxb6 {[%clk 0:01:49.9]} 42... Kh7 {[%clk 0:01:16]} 43. a5 {[%clk
0:01:47.6]} 43... g3 {[%clk 0:01:16.8]} 44. Ne5 {[%clk 0:01:36.3]} 44... gxf2+
{[%clk 0:01:15.6]} 45. Kxf2 {[%clk 0:01:38.2]} 45... Qa3 {[%clk 0:01:11.8]} 46.
Rc7 {[%clk 0:01:30.4]} 46... Qa2+ {[%clk 0:01:08.9]} 47. Ke1 {[%clk 0:01:29.2]}
47... f4 {[%clk 0:01:02.1]} 48. Rxg7+ {[%clk 0:01:11.3]} 48... Kxg7 {[%clk
0:01:02.6]} 49. Qc7+ {[%clk 0:01:12.4]} 49... Kg8 {[%clk 0:00:59.1]} 50. Qd8+
{[%clk 0:01:12.9]} 50... Rf8 {[%clk 0:00:50.7]} 51. Qg5+ {[%clk 0:01:13.4]}
51... Kh7 {[%clk 0:00:51.3]} 52. Qg6+ {[%clk 0:01:13.4]} 52... Kh8 {[%clk
0:00:51.6]} 53. Qh6+ {[%clk 0:01:13.5]} 53... Kg8 {[%clk 0:00:52]} 54. Qg6+
{[%clk 0:01:13.6]} 54... Kh8 {[%clk 0:00:53.2]} 55. Nf7+ {[%clk 0:01:11.7]}
55... Rxf7 {[%clk 0:00:54.2]} 56. Qxf7 {[%clk 0:01:13.6]} 56... fxe3 {[%clk
0:00:54.1]} 57. Qh5+ {[%clk 0:01:07.6]} 57... Kg8 {[%clk 0:00:52.8]} 58. Qg5+
{[%clk 0:01:09.2]} 58... Kf7 {[%clk 0:00:53]} 59. Qf4+ {[%clk 0:01:08.8]} 59...
Ke7 {[%clk 0:00:48.8]} 60. Qxe3 {[%clk 0:01:10.7]} 60... Qxa5+ {[%clk
0:00:48.9]} 61. Kf2 {[%clk 0:01:10.7]} 61... Qa2+ {[%clk 0:00:47.3]} 62. Kg3
{[%clk 0:01:10.2]} 62... Qb1 {[%clk 0:00:37.3]} 63. h5 {[%clk 0:01:07.7]} 63...
Qh1 {[%clk 0:00:34.7]} 64. Qg5+ {[%clk 0:01:06.4]} 64... Kd6 {[%clk 0:00:30.3]}
65. Qd8+ {[%clk 0:00:29.1]} 65... Kc6 {[%clk 0:00:23.3]} 66. Qa8+ {[%clk
0:00:31]} 1-0